[Event "Titled Tuesday Blitz March 01 Early 2022"]
[White "Shvedova, Alexandra"]
[Black "Neiksans, Arturs"]
[WhiteFideId "54154782"]
[BlackFideId "11601388"]
[WhiteElo "1920"]
[BlackElo "2447"]
[Result "0-1"]
[Round "01"]
[TimeControl "180+1"]
[Date "2022.03.01"]
[WhiteClock "0:00:20"]
[BlackClock "0:00:30"]

1. e4 {[%clk 0:03:00]}  c5 {[%clk 0:02:59]} 2. Ne2 {[%clk 0:03:01]}  e6 {[%clk 0:02:58]} 3. d4 {[%clk 0:03:00]}  cxd4 {[%clk 0:02:58]} 4. Nxd4 {[%clk 0:03:01]}  a6 {[%clk 0:02:58]} 5. c4 {[%clk 0:03:02]}  Nf6 {[%clk 0:02:57]} 6. Nc3 {[%clk 0:03:02]}  Qc7 {[%clk 0:02:57]} 7. Qd3 {[%clk 0:02:58]}  Nc6 {[%clk 0:02:46]} 8. Nxc6 {[%clk 0:02:46]}  dxc6 {[%clk 0:02:41]} 9. Be2 {[%clk 0:02:35]}  Bc5 {[%clk 0:02:33]} 10. O-O {[%clk 0:02:33]}  O-O {[%clk 0:02:28]} 11. Rb1 {[%clk 0:02:28]}  a5 {[%clk 0:02:28]} 12. b3 {[%clk 0:02:23]}  Rd8 {[%clk 0:02:27]} 13. Qc2 {[%clk 0:02:22]}  e5 {[%clk 0:02:25]} 14. Bb2 {[%clk 0:02:20]}  Be6 {[%clk 0:02:21]} 15. h3 {[%clk 0:02:19]}  Bd4 {[%clk 0:02:17]} 16. Rbd1 {[%clk 0:02:17]}  Nd7 {[%clk 0:02:09]} 17. Na4 {[%clk 0:01:42]}  Bxb2 {[%clk 0:02:00]} 18. Qxb2 {[%clk 0:01:43]}  b6 {[%clk 0:01:53]} 19. Rc1 {[%clk 0:01:40]}  Nc5 {[%clk 0:01:41]} 20. Nxc5 {[%clk 0:01:37]}  bxc5 {[%clk 0:01:41]} 21. Rfd1 {[%clk 0:01:37]}  Rd4 {[%clk 0:01:40]} 22. f3 {[%clk 0:01:35]}  Rad8 {[%clk 0:01:39]} 23. Qc3 {[%clk 0:01:34]}  Qb6 {[%clk 0:01:39]} 24. Kf2 {[%clk 0:01:30]}  R8d7 {[%clk 0:01:38]} 25. Kg1 {[%clk 0:01:26]}  h5 {[%clk 0:01:35]} 26. h4 {[%clk 0:01:24]}  Qd8 {[%clk 0:01:35]} 27. Qe1 {[%clk 0:01:22]}  g6 {[%clk 0:01:26]} 28. g3 {[%clk 0:01:19]}  Kg7 {[%clk 0:01:24]} 29. Kg2 {[%clk 0:01:19]}  Qb6 {[%clk 0:01:22]} 30. f4 {[%clk 0:01:09]}  exf4 {[%clk 0:01:16]} 31. gxf4 {[%clk 0:01:07]}  Rxe4 {[%clk 0:01:14]} 32. Rxd7 {[%clk 0:01:05]}  Bxd7 {[%clk 0:01:15]} 33. Qc3+ {[%clk 0:01:05]}  Rd4 {[%clk 0:01:11]} 34. Rf1 {[%clk 0:01:02]}  Bf5 {[%clk 0:01:08]} 35. Bf3 {[%clk 0:00:57]}  Qd8 {[%clk 0:01:07]} 36. Kg3 {[%clk 0:00:53]}  Kh7 {[%clk 0:01:03]} 37. Qe3 {[%clk 0:00:47]}  Qd6 {[%clk 0:00:52]} 38. Qe5 {[%clk 0:00:39]}  Qxe5 {[%clk 0:00:51]} 39. fxe5 {[%clk 0:00:40]}  Kg7 {[%clk 0:00:51]} 40. Bxc6 {[%clk 0:00:39]}  Rg4+ {[%clk 0:00:51]} 41. Kh3 {[%clk 0:00:34]}  Rg1+ {[%clk 0:00:47]} 42. Rxf5 {[%clk 0:00:32]}  gxf5 {[%clk 0:00:47]} 43. Bf3 {[%clk 0:00:30]}  Kg6 {[%clk 0:00:43]} 44. Bd5 {[%clk 0:00:27]}  Re1 {[%clk 0:00:42]} 45. Kg3 {[%clk 0:00:28]}  Rxe5 {[%clk 0:00:42]} 46. Kf4 {[%clk 0:00:28]}  f6 {[%clk 0:00:42]} 47. a3 {[%clk 0:00:24]}  Re2 {[%clk 0:00:37]} 48. b4 {[%clk 0:00:20]}  axb4 {[%clk 0:00:36]} 49. axb4 {[%clk 0:00:21]}  cxb4 {[%clk 0:00:36]} 50. c5 {[%clk 0:00:22]}  Rc2 {[%clk 0:00:36]} 51. c6 {[%clk 0:00:22]}  Rc5 {[%clk 0:00:34]} 52. Be6 {[%clk 0:00:19]}  Rxc6 {[%clk 0:00:31]} 53. Bxf5+ {[%clk 0:00:19]}  Kg7 {[%clk 0:00:31]} 54. Be4 {[%clk 0:00:20]}  Rc3 {[%clk 0:00:30]} 55. Kf5 {[%clk 0:00:20]}  b3 {[%clk 0:00:30]} 0-1


[Site "https://www.chess.com"]

[Event "Titled Tuesday Blitz March 01 Early 2022"]
[White "Sliwicki, Damian"]
[Black "Gabrielian, Artur"]
[WhiteFideId "1127128"]
[BlackFideId "4131002"]
[WhiteElo "2084"]
[BlackElo "2440"]
[Result "0-1"]
[Round "01"]
[TimeControl "180+1"]
[Date "2022.03.01"]
[WhiteClock "0:00:28"]
[BlackClock "0:00:13"]

1. e4 {[%clk 0:03:00]}  c5 {[%clk 0:02:59]} 2. Nf3 {[%clk 0:03:00]}  d6 {[%clk 0:02:58]} 3. d4 {[%clk 0:03:00]}  cxd4 {[%clk 0:02:59]} 4. Qxd4 {[%clk 0:03:01]}  Nc6 {[%clk 0:02:58]} 5. Bb5 {[%clk 0:03:00]}  Bd7 {[%clk 0:02:58]} 6. Bxc6 {[%clk 0:03:01]}  Bxc6 {[%clk 0:02:59]} 7. Nc3 {[%clk 0:03:01]}  Nf6 {[%clk 0:02:59]} 8. Bg5 {[%clk 0:03:02]}  e6 {[%clk 0:02:59]} 9. O-O-O {[%clk 0:03:02]}  Be7 {[%clk 0:02:59]} 10. Rhe1 {[%clk 0:03:02]}  O-O {[%clk 0:02:57]} 11. Kb1 {[%clk 0:03:03]}  h6 {[%clk 0:02:46]} 12. Bh4 {[%clk 0:02:48]}  Re8 {[%clk 0:02:45]} 13. g4 {[%clk 0:02:44]}  Nxg4 {[%clk 0:01:56]} 14. Bxe7 {[%clk 0:02:42]}  Qxe7 {[%clk 0:01:56]} 15. Rg1 {[%clk 0:02:42]}  Nf6 {[%clk 0:01:53]} 16. Qe3 {[%clk 0:02:20]}  Kh8 {[%clk 0:01:50]} 17. Rg2 {[%clk 0:01:46]}  Rg8 {[%clk 0:01:47]} 18. Rdg1 {[%clk 0:01:44]}  Nh7 {[%clk 0:01:26]} 19. Ne2 {[%clk 0:01:41]}  e5 {[%clk 0:01:13]} 20. Ng3 {[%clk 0:01:40]}  g6 {[%clk 0:01:01]} 21. Qxh6 {[%clk 0:01:38]}  Qf6 {[%clk 0:00:56]} 22. Nf5 {[%clk 0:01:18]}  gxf5 {[%clk 0:00:46]} 23. Ng5 {[%clk 0:01:14]}  Rxg5 {[%clk 0:00:43]} 24. Qxf6+ {[%clk 0:01:14]}  Nxf6 {[%clk 0:00:43]} 25. Rxg5 {[%clk 0:01:15]}  Rg8 {[%clk 0:00:28]} 26. exf5 {[%clk 0:01:10]}  Rxg5 {[%clk 0:00:27]} 27. Rxg5 {[%clk 0:01:11]}  Kh7 {[%clk 0:00:21]} 28. Kc1 {[%clk 0:01:08]}  Kh6 {[%clk 0:00:19]} 29. h4 {[%clk 0:01:05]}  d5 {[%clk 0:00:18]} 30. Rg1 {[%clk 0:00:57]}  d4 {[%clk 0:00:13]} 31. Kd2 {[%clk 0:00:51]}  Ne4+ {[%clk 0:00:13]} 32. Ke2 {[%clk 0:00:50]}  Nf6 {[%clk 0:00:13]} 33. f3 {[%clk 0:00:49]}  Bb5+ {[%clk 0:00:12]} 34. Kf2 {[%clk 0:00:46]}  Bc6 {[%clk 0:00:13]} 35. Re1 {[%clk 0:00:46]}  e4 {[%clk 0:00:13]} 36. fxe4 {[%clk 0:00:46]}  Nxe4+ {[%clk 0:00:14]} 37. Kf3 {[%clk 0:00:45]}  Nf6+ {[%clk 0:00:13]} 38. Kf4 {[%clk 0:00:44]}  Nd5+ {[%clk 0:00:12]} 39. Ke5 {[%clk 0:00:43]}  Ne3 {[%clk 0:00:12]} 40. Re2 {[%clk 0:00:39]}  Bf3 {[%clk 0:00:11]} 41. Re1 {[%clk 0:00:33]}  Nxc2 {[%clk 0:00:10]} 42. Rf1 {[%clk 0:00:28]}  Be2 {[%clk 0:00:09]} 43. Rg1 {[%clk 0:00:26]}  d3 {[%clk 0:00:09]} 44. Kf6 {[%clk 0:00:26]}  d2 {[%clk 0:00:09]} 45. Rg8 {[%clk 0:00:27]}  Kh5 {[%clk 0:00:09]} 46. Rd8 {[%clk 0:00:22]}  d1=Q {[%clk 0:00:09]} 47. Rxd1 {[%clk 0:00:23]}  Bxd1 {[%clk 0:00:09]} 48. Kxf7 {[%clk 0:00:24]}  Nd4 {[%clk 0:00:09]} 49. f6 {[%clk 0:00:24]}  Bf3 {[%clk 0:00:09]} 50. Ke7 {[%clk 0:00:24]}  Bd5 {[%clk 0:00:09]} 51. Kd6 {[%clk 0:00:24]}  Bf7 {[%clk 0:00:09]} 52. Kc7 {[%clk 0:00:24]}  Bxa2 {[%clk 0:00:08]} 53. Kxb7 {[%clk 0:00:23]}  a5 {[%clk 0:00:08]} 54. Kb6 {[%clk 0:00:22]}  a4 {[%clk 0:00:09]} 55. Ka5 {[%clk 0:00:20]}  Bb3 {[%clk 0:00:09]} 56. f7 {[%clk 0:00:19]}  Ne6 {[%clk 0:00:09]} 57. Kb6 {[%clk 0:00:16]}  Kg6 {[%clk 0:00:09]} 58. Kb5 {[%clk 0:00:15]}  Kxf7 {[%clk 0:00:09]} 59. Kc6 {[%clk 0:00:16]}  Kf6 {[%clk 0:00:09]} 60. Kd6 {[%clk 0:00:17]}  Nd4 {[%clk 0:00:09]} 61. Kc5 {[%clk 0:00:17]}  Nf3 {[%clk 0:00:09]} 62. h5 {[%clk 0:00:17]}  Kg5 {[%clk 0:00:10]} 63. h6 {[%clk 0:00:16]}  Kxh6 {[%clk 0:00:10]} 64. Kb4 {[%clk 0:00:17]}  Kg5 {[%clk 0:00:10]} 65. Ka3 {[%clk 0:00:18]}  Kf4 {[%clk 0:00:11]} 66. Kb4 {[%clk 0:00:19]}  Ke3 {[%clk 0:00:11]} 67. Ka3 {[%clk 0:00:20]}  Kd2 {[%clk 0:00:11]} 68. Kb4 {[%clk 0:00:21]}  Kc1 {[%clk 0:00:12]} 69. Ka3 {[%clk 0:00:21]}  Kb1 {[%clk 0:00:12]} 70. Kb4 {[%clk 0:00:22]}  Kxb2 {[%clk 0:00:12]} 71. Ka5 {[%clk 0:00:23]}  a3 {[%clk 0:00:13]} 72. Kb4 {[%clk 0:00:23]}  a2 {[%clk 0:00:13]} 73. Ka5 {[%clk 0:00:24]}  a1=Q+ {[%clk 0:00:13]} 74. Kb4 {[%clk 0:00:25]}  Qa3+ {[%clk 0:00:13]} 75. Kb5 {[%clk 0:00:25]}  Nd4+ {[%clk 0:00:13]} 76. Kb6 {[%clk 0:00:26]}  Qd6+ {[%clk 0:00:13]} 77. Ka5 {[%clk 0:00:26]}  Qc5+ {[%clk 0:00:12]} 78. Ka6 {[%clk 0:00:26]}  Qb5+ {[%clk 0:00:12]} 79. Ka7 {[%clk 0:00:27]}  Nc6+ {[%clk 0:00:12]} 80. Ka8 {[%clk 0:00:28]}  Qa6# {[%clk 0:00:13]} 0-1


[Site "https://www.chess.com"]

[Event "Titled Tuesday Blitz March 01 Early 2022"]
[White "Sovetbekova, Nurai"]
[Black "Jary, Sergey"]
[WhiteFideId "13801910"]
[BlackFideId "14110350"]
[WhiteElo "1545"]
[BlackElo "2260"]
[Result "0-1"]
[Round "01"]
[TimeControl "180+1"]
[Date "2022.03.01"]
[WhiteClock "0:00:25"]
[BlackClock "0:01:08"]

1. d4 {[%clk 0:03:00]}  Nf6 {[%clk 0:02:56]} 2. c4 {[%clk 0:03:00]}  g6 {[%clk 0:02:56]} 3. g3 {[%clk 0:02:59]}  Bg7 {[%clk 0:02:57]} 4. Bg2 {[%clk 0:02:59]}  O-O {[%clk 0:02:57]} 5. Nc3 {[%clk 0:02:54]}  d6 {[%clk 0:02:46]} 6. Nf3 {[%clk 0:02:49]}  Nbd7 {[%clk 0:02:47]} 7. O-O {[%clk 0:02:48]}  Re8 {[%clk 0:02:42]} 8. h3 {[%clk 0:02:42]}  e5 {[%clk 0:02:41]} 9. e4 {[%clk 0:02:42]}  exd4 {[%clk 0:02:32]} 10. Nxd4 {[%clk 0:02:41]}  Nc5 {[%clk 0:02:32]} 11. Re1 {[%clk 0:02:21]}  h6 {[%clk 0:02:32]} 12. Rb1 {[%clk 0:02:03]}  Bd7 {[%clk 0:02:23]} 13. b3 {[%clk 0:01:58]}  a5 {[%clk 0:02:18]} 14. Bb2 {[%clk 0:01:42]}  a4 {[%clk 0:02:17]} 15. b4 {[%clk 0:01:36]}  a3 {[%clk 0:02:17]} 16. bxc5 {[%clk 0:01:30]}  axb2 {[%clk 0:02:17]} 17. cxd6 {[%clk 0:01:30]}  cxd6 {[%clk 0:02:12]} 18. Rxb2 {[%clk 0:01:29]}  Rc8 {[%clk 0:02:12]} 19. Qd3 {[%clk 0:01:20]}  Qc7 {[%clk 0:02:11]} 20. Bf1 {[%clk 0:01:03]}  Bc6 {[%clk 0:01:57]} 21. Ndb5 {[%clk 0:00:56]}  Qa5 {[%clk 0:01:52]} 22. Nxd6 {[%clk 0:00:46]}  Rcd8 {[%clk 0:01:48]} 23. e5 {[%clk 0:00:43]}  Nh7 {[%clk 0:01:42]} 24. f4 {[%clk 0:00:40]}  Qc5+ {[%clk 0:01:34]} 25. Kh2 {[%clk 0:00:37]}  Rxd6 {[%clk 0:01:22]} 26. Qe2 {[%clk 0:00:30]}  Rdd8 {[%clk 0:01:18]} 27. Nb5 {[%clk 0:00:27]}  h5 {[%clk 0:01:18]} 28. Nd6 {[%clk 0:00:25]}  Rxd6 {[%clk 0:01:08]} 0-1


[Site "https://www.chess.com"]

[Event "Titled Tuesday Blitz March 01 Early 2022"]
[White "Sychev, Klementy"]
[Black "Belyakov, Bogdan"]
[WhiteFideId "4114060"]
[BlackFideId "24104795"]
[WhiteElo "2564"]
[BlackElo "2407"]
[Result "0-1"]
[Round "01"]
[TimeControl "180+1"]
[Date "2022.03.01"]
[WhiteClock "0:00:01"]
[BlackClock "0:00:07"]

1. e4 {[%clk 0:02:57]}  e5 {[%clk 0:03:00]} 2. f4 {[%clk 0:02:57]}  d5 {[%clk 0:02:59]} 3. exd5 {[%clk 0:02:56]}  exf4 {[%clk 0:03:00]} 4. Nf3 {[%clk 0:02:57]}  Nf6 {[%clk 0:03:00]} 5. Bb5+ {[%clk 0:02:57]}  c6 {[%clk 0:03:00]} 6. dxc6 {[%clk 0:02:55]}  Nxc6 {[%clk 0:03:00]} 7. Nc3 {[%clk 0:02:49]}  Bd6 {[%clk 0:02:51]} 8. Qe2+ {[%clk 0:02:49]}  Be6 {[%clk 0:02:49]} 9. Ng5 {[%clk 0:02:48]}  O-O {[%clk 0:02:35]} 10. Nxe6 {[%clk 0:02:48]}  fxe6 {[%clk 0:02:18]} 11. Bxc6 {[%clk 0:02:44]}  bxc6 {[%clk 0:02:17]} 12. b3 {[%clk 0:02:44]}  e5 {[%clk 0:02:12]} 13. Bb2 {[%clk 0:02:33]}  Kh8 {[%clk 0:02:05]} 14. O-O-O {[%clk 0:02:32]}  a5 {[%clk 0:02:02]} 15. d4 {[%clk 0:02:12]}  e4 {[%clk 0:02:02]} 16. Nxe4 {[%clk 0:02:10]}  Re8 {[%clk 0:01:59]} 17. Nxd6 {[%clk 0:02:10]}  Qxd6 {[%clk 0:01:58]} 18. Qf3 {[%clk 0:01:54]}  a4 {[%clk 0:01:58]} 19. Rhe1 {[%clk 0:01:51]}  Reb8 {[%clk 0:01:57]} 20. d5 {[%clk 0:01:41]}  cxd5 {[%clk 0:01:49]} 21. Rd4 {[%clk 0:01:30]}  axb3 {[%clk 0:01:49]} 22. axb3 {[%clk 0:01:29]}  Rc8 {[%clk 0:01:33]} 23. Qxf4 {[%clk 0:01:25]}  Qc5 {[%clk 0:01:27]} 24. Re2 {[%clk 0:01:22]}  Ra2 {[%clk 0:01:20]} 25. Rd3 {[%clk 0:01:10]}  h6 {[%clk 0:01:10]} 26. Qd4 {[%clk 0:01:07]}  Qc7 {[%clk 0:00:57]} 27. Rc3 {[%clk 0:01:03]}  Qb8 {[%clk 0:00:53]} 28. Rxc8+ {[%clk 0:00:58]}  Qxc8 {[%clk 0:00:53]} 29. Qf4 {[%clk 0:00:52]}  Ra6 {[%clk 0:00:51]} 30. h3 {[%clk 0:00:44]}  Ne4 {[%clk 0:00:46]} 31. Qe5 {[%clk 0:00:42]}  Qb7 {[%clk 0:00:42]} 32. c4 {[%clk 0:00:32]}  Nf6 {[%clk 0:00:30]} 33. Qf5 {[%clk 0:00:27]}  Qxb3 {[%clk 0:00:18]} 34. Bxf6 {[%clk 0:00:06]}  Qxc4+ {[%clk 0:00:07]} 35. Rc2 {[%clk 0:00:05]}  Rxf6 {[%clk 0:00:08]} 36. Rc3 {[%clk 0:00:01]}  Qxc3+ {[%clk 0:00:07]} 0-1


[Site "https://www.chess.com"]

[Event "Titled Tuesday Blitz March 01 Early 2022"]
[White "Szpar, Milosz"]
[Black "Tarasova, Viktoriya"]
[WhiteFideId "1184989"]
[BlackFideId "4175840"]
[WhiteElo "2447"]
[BlackElo "2182"]
[Result "1-0"]
[Round "01"]
[TimeControl "180+1"]
[Date "2022.03.01"]
[WhiteClock "0:01:23"]
[BlackClock "0:00:01"]

1. e4 {[%clk 0:02:59]}  e5 {[%clk 0:02:59]} 2. Nf3 {[%clk 0:02:49]}  Nc6 {[%clk 0:02:57]} 3. Bb5 {[%clk 0:02:49]}  Nf6 {[%clk 0:02:56]} 4. d3 {[%clk 0:02:48]}  Bc5 {[%clk 0:02:56]} 5. O-O {[%clk 0:02:48]}  Nd4 {[%clk 0:02:55]} 6. Nxd4 {[%clk 0:02:48]}  Bxd4 {[%clk 0:02:55]} 7. c3 {[%clk 0:02:49]}  Bb6 {[%clk 0:02:45]} 8. Na3 {[%clk 0:02:48]}  c6 {[%clk 0:02:44]} 9. Ba4 {[%clk 0:02:48]}  Bc7 {[%clk 0:02:43]} 10. Re1 {[%clk 0:02:45]}  O-O {[%clk 0:02:39]} 11. Bg5 {[%clk 0:02:42]}  h6 {[%clk 0:02:38]} 12. Bh4 {[%clk 0:02:39]}  b5 {[%clk 0:02:34]} 13. Bb3 {[%clk 0:02:39]}  a5 {[%clk 0:02:34]} 14. Bc2 {[%clk 0:02:37]}  g5 {[%clk 0:02:25]} 15. Bg3 {[%clk 0:02:37]}  Re8 {[%clk 0:02:18]} 16. Rc1 {[%clk 0:02:32]}  Rb8 {[%clk 0:02:05]} 17. Nb1 {[%clk 0:02:30]}  d5 {[%clk 0:02:03]} 18. Nd2 {[%clk 0:02:29]}  Bg4 {[%clk 0:01:51]} 19. f3 {[%clk 0:02:25]}  Bd7 {[%clk 0:01:41]} 20. Nf1 {[%clk 0:02:23]}  Nh5 {[%clk 0:01:36]} 21. Ne3 {[%clk 0:02:16]}  Nxg3 {[%clk 0:01:31]} 22. hxg3 {[%clk 0:02:15]}  Bb6 {[%clk 0:01:32]} 23. Kh1 {[%clk 0:02:12]}  Bxe3 {[%clk 0:01:29]} 24. Rxe3 {[%clk 0:02:12]}  Qf6 {[%clk 0:01:23]} 25. Qd2 {[%clk 0:02:10]}  Kg7 {[%clk 0:01:18]} 26. Rce1 {[%clk 0:01:47]}  h5 {[%clk 0:01:02]} 27. exd5 {[%clk 0:01:46]}  cxd5 {[%clk 0:01:02]} 28. d4 {[%clk 0:01:47]}  exd4 {[%clk 0:00:57]} 29. cxd4 {[%clk 0:01:47]}  Rxe3 {[%clk 0:00:54]} 30. Rxe3 {[%clk 0:01:46]}  Re8 {[%clk 0:00:36]} 31. Rxe8 {[%clk 0:01:46]}  Bxe8 {[%clk 0:00:36]} 32. Qd3 {[%clk 0:01:46]}  Qg6 {[%clk 0:00:25]} 33. Qc3 {[%clk 0:01:43]}  Qf6 {[%clk 0:00:26]} 34. Kg1 {[%clk 0:01:42]}  Qe7 {[%clk 0:00:23]} 35. Kf2 {[%clk 0:01:40]}  b4 {[%clk 0:00:21]} 36. Qd3 {[%clk 0:01:39]}  Kf8 {[%clk 0:00:04]} 37. Bb3 {[%clk 0:01:35]}  Qf6 {[%clk 0:00:04]} 38. Bxd5 {[%clk 0:01:34]}  Qd6 {[%clk 0:00:02]} 39. Be4 {[%clk 0:01:32]}  h4 {[%clk 0:00:02]} 40. gxh4 {[%clk 0:01:25]}  gxh4 {[%clk 0:00:02]} 41. Qe3 {[%clk 0:01:26]}  Qg3+ {[%clk 0:00:02]} 42. Kg1 {[%clk 0:01:26]}  Bb5 {[%clk 0:00:01]} 43. Qh6+ {[%clk 0:01:26]}  Ke7 {[%clk 0:00:01]} 44. Qe3 {[%clk 0:01:23]} 1-0


[Site "https://www.chess.com"]

[Event "Titled Tuesday Blitz March 01 Early 2022"]
[White "Talibov, Shiroghlan"]
[Black "Moskvin, Anatoly"]
[WhiteFideId "13429078"]
[BlackFideId "24199990"]
[WhiteElo "2070"]
[BlackElo "2079"]
[Result "1-0"]
[Round "01"]
[TimeControl "180+1"]
[Date "2022.03.01"]
[WhiteClock "0:00:04"]
[BlackClock "0:00:04"]

1. c4 {[%clk 0:03:00]}  e5 {[%clk 0:02:59]} 2. Nc3 {[%clk 0:02:59]}  Nc6 {[%clk 0:03:00]} 3. Nf3 {[%clk 0:02:57]}  Bc5 {[%clk 0:02:51]} 4. e4 {[%clk 0:02:56]}  d6 {[%clk 0:02:50]} 5. Be2 {[%clk 0:02:52]}  Bg4 {[%clk 0:02:37]} 6. Nxe5 {[%clk 0:02:36]}  Bxe2 {[%clk 0:02:37]} 7. Nxc6 {[%clk 0:02:36]}  Bxd1 {[%clk 0:02:37]} 8. Nxd8 {[%clk 0:02:36]}  Bg4 {[%clk 0:02:37]} 9. Nxb7 {[%clk 0:02:35]}  Bb6 {[%clk 0:02:37]} 10. a4 {[%clk 0:02:32]}  a5 {[%clk 0:02:26]} 11. Nd5 {[%clk 0:02:23]}  Kd7 {[%clk 0:02:07]} 12. b4 {[%clk 0:02:02]}  Bd4 {[%clk 0:01:19]} 13. Rb1 {[%clk 0:01:42]}  c6 {[%clk 0:01:13]} 14. Bb2 {[%clk 0:01:38]}  Bxb2 {[%clk 0:00:59]} 15. Nb6+ {[%clk 0:01:37]}  Kc7 {[%clk 0:00:59]} 16. Nxa8+ {[%clk 0:01:34]}  Kxb7 {[%clk 0:01:00]} 17. bxa5 {[%clk 0:01:27]}  Kxa8 {[%clk 0:00:58]} 18. Rxb2 {[%clk 0:01:28]}  Nf6 {[%clk 0:00:57]} 19. f3 {[%clk 0:01:27]}  Be6 {[%clk 0:00:52]} 20. d3 {[%clk 0:01:27]}  Rb8 {[%clk 0:00:46]} 21. Rxb8+ {[%clk 0:01:23]}  Kxb8 {[%clk 0:00:47]} 22. Kd2 {[%clk 0:01:22]}  Ka7 {[%clk 0:00:48]} 23. Rb1 {[%clk 0:01:22]}  Nd7 {[%clk 0:00:48]} 24. d4 {[%clk 0:01:17]}  Bxc4 {[%clk 0:00:46]} 25. Kc3 {[%clk 0:01:13]}  d5 {[%clk 0:00:42]} 26. exd5 {[%clk 0:01:11]}  Bxd5 {[%clk 0:00:39]} 27. Re1 {[%clk 0:01:11]}  Ka6 {[%clk 0:00:37]} 28. Kb4 {[%clk 0:01:01]}  Nf8 {[%clk 0:00:28]} 29. Re7 {[%clk 0:00:53]}  Ng6 {[%clk 0:00:20]} 30. Re8 {[%clk 0:00:34]}  Nh4 {[%clk 0:00:19]} 31. Ra8+ {[%clk 0:00:18]}  Kb7 {[%clk 0:00:18]} 32. Rh8 {[%clk 0:00:19]}  Nxg2 {[%clk 0:00:06]} 33. Rxh7 {[%clk 0:00:19]}  g6 {[%clk 0:00:07]} 34. h4 {[%clk 0:00:16]}  Nf4 {[%clk 0:00:07]} 35. Kc5 {[%clk 0:00:14]}  Nd3+ {[%clk 0:00:07]} 36. Kd6 {[%clk 0:00:14]}  Nb2 {[%clk 0:00:06]} 37. f4 {[%clk 0:00:11]}  Nxa4 {[%clk 0:00:05]} 38. Ke7 {[%clk 0:00:09]}  Nc3 {[%clk 0:00:04]} 39. f5 {[%clk 0:00:09]}  gxf5 {[%clk 0:00:03]} 40. h5 {[%clk 0:00:09]}  Ne2 {[%clk 0:00:03]} 41. Rg7 {[%clk 0:00:08]}  Nxd4 {[%clk 0:00:02]} 42. h6 {[%clk 0:00:07]}  f4 {[%clk 0:00:02]} 43. h7 {[%clk 0:00:07]}  Nf5+ {[%clk 0:00:02]} 44. Kf6 {[%clk 0:00:07]}  Nxg7 {[%clk 0:00:02]} 45. h8=Q {[%clk 0:00:04]}  f3 {[%clk 0:00:03]} 46. Qh2 {[%clk 0:00:02]}  Ne6 {[%clk 0:00:03]} 47. Qb2+ {[%clk 0:00:03]}  Kc8 {[%clk 0:00:03]} 48. Ke7 {[%clk 0:00:03]}  c5 {[%clk 0:00:02]} 49. a6 {[%clk 0:00:02]}  f2 {[%clk 0:00:02]} 50. Qxf2 {[%clk 0:00:02]}  Kb8 {[%clk 0:00:03]} 51. Qb2+ {[%clk 0:00:01]}  Ka7 {[%clk 0:00:04]} 52. Kd6 {[%clk 0:00:02]}  Kxa6 {[%clk 0:00:04]} 53. Kxd5 {[%clk 0:00:03]}  Ka7 {[%clk 0:00:03]} 54. Qa2+ {[%clk 0:00:03]}  Kb7 {[%clk 0:00:03]} 55. Kd6 {[%clk 0:00:04]}  Kb6 {[%clk 0:00:04]} 56. Qb2+ {[%clk 0:00:04]}  Ka5 {[%clk 0:00:04]} 57. Qf6 {[%clk 0:00:05]}  Kb4 {[%clk 0:00:04]} 58. Qxf7 {[%clk 0:00:05]}  Nd4 {[%clk 0:00:04]} 59. Qb7+ {[%clk 0:00:05]}  Kc3 {[%clk 0:00:04]} 60. Kxc5 {[%clk 0:00:04]} 1-0


[Site "https://www.chess.com"]

[Event "Titled Tuesday Blitz March 01 Early 2022"]
[White "Tanenbaum, Zachary"]
[Black "Matveeva, Olga"]
[WhiteFideId "2060850"]
[BlackFideId "24107018"]
[WhiteElo "2168"]
[BlackElo "2083"]
[Result "1-0"]
[Round "01"]
[TimeControl "180+1"]
[Date "2022.03.01"]
[WhiteClock "0:00:34"]
[BlackClock "0:00:35"]

1. e4 {[%clk 0:02:59]}  e6 {[%clk 0:03:00]} 2. d4 {[%clk 0:03:00]}  d5 {[%clk 0:03:00]} 3. Nc3 {[%clk 0:03:01]}  Nf6 {[%clk 0:02:58]} 4. Bg5 {[%clk 0:03:01]}  Bb4 {[%clk 0:02:57]} 5. e5 {[%clk 0:03:01]}  h6 {[%clk 0:02:56]} 6. Bd2 {[%clk 0:03:02]}  Bxc3 {[%clk 0:02:56]} 7. bxc3 {[%clk 0:03:03]}  Ne4 {[%clk 0:02:56]} 8. Qg4 {[%clk 0:03:03]}  Kf8 {[%clk 0:02:53]} 9. Bd3 {[%clk 0:03:03]}  Nxd2 {[%clk 0:02:52]} 10. Kxd2 {[%clk 0:03:04]}  c5 {[%clk 0:02:52]} 11. h4 {[%clk 0:03:04]}  c4 {[%clk 0:02:51]} 12. Be2 {[%clk 0:03:04]}  Nc6 {[%clk 0:02:51]} 13. Nf3 {[%clk 0:03:01]}  b5 {[%clk 0:02:50]} 14. Rhb1 {[%clk 0:03:01]}  Rb8 {[%clk 0:02:49]} 15. h5 {[%clk 0:02:58]}  Bd7 {[%clk 0:02:48]} 16. Qf4 {[%clk 0:02:58]}  a5 {[%clk 0:02:42]} 17. a3 {[%clk 0:02:57]}  Qe7 {[%clk 0:02:41]} 18. g4 {[%clk 0:02:56]}  b4 {[%clk 0:02:33]} 19. axb4 {[%clk 0:02:56]}  axb4 {[%clk 0:02:34]} 20. cxb4 {[%clk 0:02:52]}  Rxb4 {[%clk 0:02:33]} 21. g5 {[%clk 0:01:43]}  hxg5 {[%clk 0:02:21]} 22. Nxg5 {[%clk 0:01:44]}  c3+ {[%clk 0:02:10]} 23. Kxc3 {[%clk 0:01:25]}  Rxd4 {[%clk 0:02:09]} 24. Ra8+ {[%clk 0:01:24]}  Be8 {[%clk 0:02:09]} 25. Qe3 {[%clk 0:01:09]}  Qc5+ {[%clk 0:01:51]} 26. Kb2 {[%clk 0:01:09]}  Rb4+ {[%clk 0:01:28]} 27. Kc1 {[%clk 0:01:08]}  d4 {[%clk 0:01:21]} 28. Qf3 {[%clk 0:00:45]}  Nxe5 {[%clk 0:00:59]} 29. Nxe6+ {[%clk 0:00:44]}  Ke7 {[%clk 0:00:44]} 30. Nxc5 {[%clk 0:00:44]}  Rxb1+ {[%clk 0:00:43]} 31. Kxb1 {[%clk 0:00:45]}  Nxf3 {[%clk 0:00:43]} 32. Bxf3 {[%clk 0:00:45]}  g6 {[%clk 0:00:36]} 33. hxg6 {[%clk 0:00:41]}  fxg6 {[%clk 0:00:35]} 34. Bc6 {[%clk 0:00:34]} 1-0


[Site "https://www.chess.com"]